[Event "WYCC 2018 G14"]
[Site "Halkidiki"]
[Date "2018.10.30"]
[Round "11"]
[White "Wikar, Martyna"]
[Black "Mehmed, Elif"]
[Result "1-0"]
[ECO "C50"]
[WhiteElo "2024"]
[BlackElo "2049"]
[Annotator "NA"]
[PlyCount "69"]
[EventDate "2018.10.20"]
[EventType "swiss"]
[EventCountry "GRE"]
[SourceTitle "playchess.com"]
[Source "ChessBase"]
[SourceQuality "1"]
[TimeControl "40/5400+30:1800+30"]

1. e4 {[%emt 0:00:00]} e5 {[%emt 0:00:00]} 2. Nf3 {[%emt 0:00:00]} Nc6 {[%emt 0:00:00]} 3. Bc4 {[%emt 0:00:00]} Bc5 {[%emt 0:00:00]} 4. d3 {[%emt 0:01:11]} Nf6 {[%emt 0:00:00]} 5. O-O {[%emt 0:00:45]} h6 {[%emt 0:00:31]} 6. c3 {[%emt 0:00:33]} d6 {[%emt 0:03:52]} 7. Bb3 {[%emt 0:01:52] C54: Giuoco Piano: 4 c3 Nf6, main lines with 5 d4 and 5 d3} (7. Re1 O-O 8. Nbd2 a6 9. a4 Ba7 10. Nf1 Be6 11. Bxe6 fxe6 12. Be3 Bxe3 13. Rxe3 a5 14. Ng3 Qe8 15. Qb3 {½-½ (30) Vocaturo,D (2615)-Mamedyarov,S (2820) Batumi 2018}) 7... a6 {[%emt 0:01:44]} 8. h3 {[%emt 0:01:40]} Ba7 {[%emt 0:01:04]} 9. Re1 {[%emt 0:01:37]} g5 {[%emt 0:03:56]} 10. Nh2 {[%emt 0:02:25]} Rg8 {[%emt 0:07:31]} 11. Be3 {[%emt 0:05:52]} g4 {[%emt 0:05:27]} 12. Bxa7 {[%emt 0:06:23]} Rxa7 $146 {[%emt 0:15:13]} ({Predecessor:} 12... gxh3 13. g3 Nxa7 14. Nd2 h5 {0-1 (50) Hou,Y (2584)-Nielsen,P (2680) Amsterdam 2009}) 13. g3 {[%emt 0:01:30]} gxh3 {[%emt 0:00:16]} 14. Nd2 {[%emt 0:03:49]} Ne7 {[%emt 0:07:54]} 15. Qf3 {[%emt 0:02:58]} Ng6 {[%emt 0:01:08]} 16. Kh1 {[%emt 0:01:12]} h5 {[%emt 0:05:36]} 17. d4 {[%emt 0:01:51]} Qe7 {[%emt 0:03:36]} 18. Ndf1 {[%emt 0:03:14]} h4 {[%emt 0:02:17]} 19. Ne3 {[%emt 0:04:03]} hxg3 {[%emt 0:07:03]} 20. fxg3 {[%emt 0:00:26]} Nf8 {[%emt 0:00:43]} 21. Rf1 {[%emt 0:10:10]} Rg6 {[%emt 0:00:50]} 22. Rae1 {[%emt 0:01:48]} Ra8 {[%emt 0:05:15]} 23. Nf5 {[%emt 0:02:31]} Bxf5 {[%emt 0:00:12]} 24. exf5 {[%emt 0:00:57]} e4 {[%emt 0:00:11]} 25. fxg6 $18 {[%emt 0:03:05]} exf3 {[%emt 0:00:04]} 26. gxf7+ {[%emt 0:03:36]} Kd7 {[%emt 0:00:08]} 27. Rxe7+ {[%emt 0:00:12]} Kxe7 {[%emt 0:00:05]} 28. Nxf3 {[%emt 0:02:32]} d5 {[%emt 0:00:53]} 29. Ne5 {[%emt 0:02:39]} c6 {[%emt 0:02:03]} 30. Bc2 {[%emt 0:03:01]} Rc8 {[%emt 0:03:49]} 31. g4 {[%emt 0:06:39]} Ne6 {[%emt 0:00:04]} 32. Bf5 {[%emt 0:03:30]} Rd8 {[%emt 0:02:50]} 33. Bxe6 {[%emt 0:01:34]} Kxe6 {[%emt 0:00:03]} 34. g5 {[%emt 0:00:52]} Nd7 {[%emt 0:00:45]} 35. Nxd7 {[%emt 0:00:18]} 1-0

[Event "WYCC 2018 G14"]
[Site "Halkidiki"]
[Date "2018.10.30"]
[Round "11"]
[White "Toncheva, Nadya"]
[Black "Murzina, Agata"]
[Result "1-0"]
[ECO "E42"]
[WhiteElo "2002"]
[BlackElo "1768"]
[Annotator "NA"]
[PlyCount "67"]
[EventDate "2018.10.20"]
[EventType "swiss"]
[EventCountry "GRE"]
[SourceTitle "playchess.com"]
[Source "ChessBase"]
[SourceQuality "1"]
[TimeControl "40/5400+30:1800+30"]

1. d4 {[%emt 0:02:48]} Nf6 {[%emt 0:00:00]} 2. c4 {[%emt 0:00:04]} e6 {[%emt 0:00:00]} 3. Nc3 {[%emt 0:00:04]} Bb4 {[%emt 0:00:23]} 4. e3 {[%emt 0:00:05]} c5 {[%emt 0:00:04]} 5. Nge2 {[%emt 0:00:09]} O-O {[%emt 0:02:12]} 6. a3 {[%emt 0:01:27]} Bxc3+ {[%emt 0:00:53]} 7. Nxc3 {[%emt 0:00:06]} cxd4 {[%emt 0:00:12]} 8. exd4 {[%emt 0:00:12]} d5 {[%emt 0:00:06]} 9. Be3 {[%emt 0:01:53]} b6 {[%emt 0:02:32]} 10. cxd5 {[%emt 0:00:16]} Nxd5 {[%emt 0:00:28]} 11. Bd3 {[%emt 0:00:17]} Bb7 {[%emt 0:04:18]} 12. O-O {[%emt 0:01:43]} f5 {[%emt 0:04:46]} 13. Re1 {[%emt 0:02:04]} Nc6 {[%emt 0:05:51]} 14. Bc2 {[%emt 0:03:02]} f4 {[%emt 0:26:51]} 15. Bc1 {[%emt 0:00:39]} Qh4 {[%emt 0:01:06]} 16. Rxe6 {[%emt 0:07:45]} f3 {[%emt 0:30:53]} 17. Re4 {[%emt 0:05:31]} Nxc3 {[%emt 0:00:24]} 18. bxc3 $16 {[%emt 0:05:50]} Qh5 {[%emt 0:02:01]} 19. g3 {[%emt 0:07:23]} g5 {[%emt 0:06:42]} 20. h4 {[%emt 0:03:15]} h6 {[%emt 0:02:00]} 21. Bb3+ {[%emt 0:00:59]} Kg7 {[%emt 0:02:29]} 22. d5 {[%emt 0:00:20]} Rad8 {[%emt 0:00:04]} 23. Be3 {[%emt 0:00:19]} Qg6 {[%emt 0:00:56]} 24. Bd4+ {[%emt 0:03:57]} Nxd4 {[%emt 0:00:13]} 25. Qxd4+ {[%emt 0:00:04]} Qf6 {[%emt 0:01:35]} 26. Re7+ {[%emt 0:01:19]} Rf7 {[%emt 0:00:05]} 27. Qxf6+ {[%emt 0:00:10]} Kxf6 {[%emt 0:00:06]} 28. Re6+ {[%emt 0:00:02]} Kf5 {[%emt 0:01:43]} 29. Rae1 {[%emt 0:01:46]} gxh4 {[%emt 0:00:13]} 30. R1e5+ {[%emt 0:01:05]} Kg4 {[%emt 0:00:27]} 31. Rg6+ {[%emt 0:00:45]} Kh3 {[%emt 0:00:02]} 32. Re4 {[%emt 0:00:24]} Rf4 {[%emt 0:00:37]} 33. Rxf4 {[%emt 0:00:06]} hxg3 {[%emt 0:00:05]} 34. Rxg3# 1-0

[Event "WYCC 2018 G14"]
[Site "Halkidiki"]
[Date "2018.10.30"]
[Round "11"]
[White "Kamalidenova, Meruert"]
[Black "Hrebenshchykova, Yelyzaveta"]
[Result "0-1"]
[ECO "E61"]
[WhiteElo "1999"]
[BlackElo "1968"]
[Annotator "NA"]
[PlyCount "118"]
[EventDate "2018.10.20"]
[EventType "swiss"]
[EventCountry "GRE"]
[SourceTitle "playchess.com"]
[Source "ChessBase"]
[SourceQuality "1"]
[TimeControl "40/5400+30:1800+30"]

1. d4 {[%emt 0:00:00]} Nf6 {[%emt 0:00:00]} 2. c4 {[%emt 0:00:00]} g6 {[%emt 0:00:00]} 3. Nf3 {[%emt 0:00:00]} Bg7 {[%emt 0:00:00]} 4. Nc3 {[%emt 0:00:00]} d6 {[%emt 0:00:00]} 5. Bg5 {[%emt 0:00:03]} h6 {[%emt 0:00:16]} 6. Bh4 {[%emt 0:00:20]} g5 {[%emt 0:00:15]} 7. Bg3 {[%emt 0:00:25]} Nh5 {[%emt 0:00:06]} 8. e3 {[%emt 0:01:09]} Nxg3 {[%emt 0:00:12]} 9. hxg3 {[%emt 0:00:11]} e6 {[%emt 0:00:27] E61: Königsindisch (Abweichungen der Hauptvariante)} (9... c5 10. d5 Qa5 11. Qc2 Nd7 12. Be2 Nf6 13. Nd2 a6 14. a4 Bd7 15. Ra3 O-O-O 16. f3 h5 17. Kf2 {½-½ (71) Jones,G (2629)-Costachi,M (2409) Bunratty 2016}) 10. Bd3 {[%emt 0:01:27]} b6 $146 {[%emt 0:27:27]} ({Vorgänger:} 10... Nd7 11. Qc2 Qe7 12. O-O-O Nf6 13. d5 c5 14. Nd2 a6 15. Nde4 Nxe4 16. Bxe4 O-O 17. dxe6 Bxe6 {1-0 (47) Krejci,J (2504)-Miesbauer,J (2321) Ceske Budejovice 2016}) 11. Qc2 {[%emt 0:03:54]} Bb7 {[%emt 0:00:25]} 12. O-O-O {[%emt 0:02:43]} Nd7 {[%emt 0:00:48]} 13. Ne1 {[%emt 0:02:26]} Qe7 {[%emt 0:02:44]} 14. Qa4 {[%emt 0:04:02]} c6 {[%emt 0:11:21]} 15. Nc2 {[%emt 0:03:44]} a6 {[%emt 0:02:50]} 16. Be4 {[%emt 0:02:35]} d5 {[%emt 0:07:42]} 17. cxd5 {[%emt 0:03:33]} cxd5 {[%emt 0:00:08]} 18. Bd3 {[%emt 0:02:08]} b5 {[%emt 0:02:11]} 19. Qa5 {[%emt 0:02:12]} O-O {[%emt 0:04:23]} 20. f4 {[%emt 0:04:31]} Nf6 {[%emt 0:05:03]} 21. fxg5 {[%emt 0:01:43]} hxg5 {[%emt 0:00:07]} 22. Ne2 {[%emt 0:01:01]} Ne4 {[%emt 0:01:27]} 23. Bxe4 {[%emt 0:05:29]} dxe4 {[%emt 0:00:06]} 24. g4 {[%emt 0:00:37]} Rfc8 {[%emt 0:06:07]} 25. Kb1 {[%emt 0:01:34]} Qd6 {[%emt 0:08:11]} 26. Qe1 {[%emt 0:03:09]} Bd5 {[%emt 0:00:45]} 27. Rd2 {[%emt 0:01:45]} Bc4 {[%emt 0:03:59]} 28. Nc1 {[%emt 0:03:59]} b4 {[%emt 0:00:37]} 29. Qg1 {[%emt 0:03:09]} Qg3 {[%emt 0:03:40]} (29... Rc7 $17 30. Qh2 Qxh2 31. Rxh2 a5) 30. Qh2 {[%emt 0:02:04]} Qxg4 {[%emt 0:03:43]} 31. Rf2 {[%emt 0:01:58]} Ra7 {[%emt 0:05:58]} 32. b3 {[%emt 0:04:36]} Bb5 {[%emt 0:02:21]} 33. Nxb4 {[%emt 0:01:17]} a5 {[%emt 0:01:40]} 34. Rc2 {[%emt 0:01:36]} Raa8 {[%emt 0:00:47]} 35. Rxc8+ {[%emt 0:04:19]} Rxc8 {[%emt 0:00:04]} 36. Nc2 {[%emt 0:00:19]} Qf5 {[%emt 0:00:14]} 37. g4 {[%emt 0:02:29]} Qxg4 {[%emt 0:01:19]} 38. a4 {[%emt 0:01:30]} Ba6 {[%emt 0:00:35]} 39. Qd2 {[%emt 0:01:48]} Qf5 {[%emt 0:00:35]} 40. Kb2 {[%emt 0:00:00]} Qd5 {[%emt 0:00:00]} 41. Rg1 {[%emt 0:02:35]} f6 {[%emt 0:08:09]} 42. Rh1 {[%emt 0:03:25]} Bd3 {[%emt 0:01:53]} 43. Ne1 {[%emt 0:03:32]} e5 {[%emt 0:03:56]} 44. Ncxd3 {[%emt 0:04:08]} exd3 {[%emt 0:00:06]} 45. Rf1 {[%emt 0:00:57]} e4 {[%emt 0:04:16]} 46. Rg1 {[%emt 0:01:09]} Bf8 {[%emt 0:02:49]} 47. Nxd3 {[%emt 0:00:22]} exd3 {[%emt 0:00:11]} 48. Qxd3 {[%emt 0:00:09]} Bg7 {[%emt 0:06:31]} 49. Ka2 {[%emt 0:01:01]} Qf3 {[%emt 0:00:30]} 50. Qd2 {[%emt 0:00:59]} Qe4 {[%emt 0:00:21]} 51. Kb2 {[%emt 0:00:07]} Bf8 {[%emt 0:00:51]} 52. Rc1 {[%emt 0:00:20]} Rxc1 {[%emt 0:00:26]} 53. Qxc1 {[%emt 0:00:08]} Qg2+ {[%emt 0:01:03]} 54. Kb1 {[%emt 0:00:16]} Qd5 {[%emt 0:00:06]} 55. Qc2 {[%emt 0:00:16]} f5 {[%emt 0:00:25]} 56. Kb2 {[%emt 0:00:22]} g4 $19 {[%emt 0:00:24]} 57. Ka2 {[%emt 0:00:09]} g3 {[%emt 0:01:24]} 58. Kb2 {[%emt 0:00:05]} g2 {[%emt 0:00:23]} 59. Qf2 {[%emt 0:00:04]} Qe4 {[%emt 0:00:36]} 0-1

[Event "WYCC 2018 G14"]
[Site "Halkidiki"]
[Date "2018.10.30"]
[Round "11"]
[White "Guillo Longares, Cecilia"]
[Black "Kurmangaliyeva, Liya"]
[Result "1-0"]
[ECO "D15"]
[WhiteElo "1998"]
[BlackElo "1733"]
[Annotator "NA"]
[PlyCount "87"]
[EventDate "2018.10.20"]
[EventType "swiss"]
[EventCountry "GRE"]
[SourceTitle "playchess.com"]
[Source "ChessBase"]
[SourceQuality "1"]
[TimeControl "40/5400+30:1800+30"]

1. d4 {[%emt 0:00:00]} d5 {[%emt 0:00:00]} 2. c4 {[%emt 0:00:00]} c6 {[%emt 0:00:00]} 3. Nc3 {[%emt 0:00:00]} Nf6 {[%emt 0:00:00]} 4. Nf3 {[%emt 0:00:00]} a6 {[%emt 0:00:03]} 5. Qb3 {[%emt 0:03:41]} dxc4 {[%emt 0:00:08]} 6. Qxc4 {[%emt 0:00:06]} b5 {[%emt 0:00:04]} 7. Qd3 {[%emt 0:00:09]} e6 {[%emt 0:00:06]} 8. e4 {[%emt 0:01:25]} c5 {[%emt 0:00:16]} 9. e5 {[%emt 0:03:56]} c4 {[%emt 0:09:14]} 10. Qd1 {[%emt 0:02:59]} Nd5 {[%emt 0:00:30]} 11. a4 {[%emt 0:01:41]} Bb7 {[%emt 0:18:39]} 12. axb5 {[%emt 0:09:26]} axb5 {[%emt 0:00:49]} 13. Rxa8 {[%emt 0:01:56]} Bxa8 {[%emt 0:00:13]} 14. Bd2 {[%emt 0:09:16]} Qb6 {[%emt 0:11:20]} 15. Be2 {[%emt 0:04:32]} Be7 {[%emt 0:11:35]} 16. O-O {[%emt 0:00:22]} Nd7 {[%emt 0:06:03]} 17. Qe1 {[%emt 0:06:46]} Nxc3 {[%emt 0:04:23]} 18. bxc3 {[%emt 0:00:16]} Qc6 {[%emt 0:01:44]} 19. Bd1 {[%emt 0:01:50]} g5 {[%emt 0:08:41]} 20. Qe2 {[%emt 0:03:38]} h5 {[%emt 0:03:41]} 21. Ne1 {[%emt 0:00:17]} Nf8 {[%emt 0:04:17]} 22. Bc2 {[%emt 0:08:46]} g4 {[%emt 0:01:56]} 23. f3 {[%emt 0:00:54]} g3 {[%emt 0:06:47]} 24. hxg3 {[%emt 0:03:26]} h4 {[%emt 0:00:54]} 25. Be4 {[%emt 0:00:58]} Qc8 {[%emt 0:00:05]} 26. Bxa8 {[%emt 0:00:33]} Qxa8 {[%emt 0:00:03]} 27. gxh4 {[%emt 0:02:46]} Rxh4 {[%emt 0:02:47]} 28. Nc2 {[%emt 0:04:11]} Ng6 {[%emt 0:01:29]} 29. g3 {[%emt 0:00:29]} Rh7 {[%emt 0:01:49]} 30. Ra1 {[%emt 0:03:45]} Qd5 {[%emt 0:03:22]} 31. Qe4 {[%emt 0:05:00]} Qxe4 {[%emt 0:00:22]} 32. fxe4 {[%emt 0:00:04]} Kd7 {[%emt 0:00:11]} 33. Bc1 {[%emt 0:02:56]} Rh8 {[%emt 0:01:47]} 34. Rb1 {[%emt 0:02:03]} Kc6 {[%emt 0:01:05]} 35. Ra1 {[%emt 0:00:49]} Kb7 {[%emt 0:00:49]} 36. Kg2 {[%emt 0:02:40]} Rg8 {[%emt 0:01:15]} 37. Ba3 {[%emt 0:04:41]} Bg5 {[%emt 0:00:49]} 38. Bc5 {[%emt 0:01:03]} Bd2 {[%emt 0:00:39]} 39. Ra7+ {[%emt 0:00:48]} Kb8 {[%emt 0:00:06]} 40. Nb4 {[%emt 0:00:00]} Nf4+ {[%emt 0:00:00]} 41. Kf3 {[%emt 0:01:39]} Nd3 {[%emt 0:03:08]} 42. Nc6+ {[%emt 0:00:09]} Kc8 {[%emt 0:00:09]} 43. Bd6 {[%emt 0:01:49]} Ne1+ {[%emt 0:03:54]} 44. Ke2 {[%emt 0:00:53]} 1-0

[Event "WYCC 2018 G14"]
[Site "Halkidiki"]
[Date "2018.10.30"]
[Round "11"]
[White "Eizaguerri Floris, Maria"]
[Black "Jyothsna L"]
[Result "1/2-1/2"]
[ECO "B11"]
[WhiteElo "1987"]
[BlackElo "2060"]
[Annotator "NA"]
[PlyCount "83"]
[EventDate "2018.10.20"]
[EventType "swiss"]
[EventCountry "GRE"]
[SourceTitle "playchess.com"]
[Source "ChessBase"]
[SourceQuality "1"]
[TimeControl "40/5400+30:1800+30"]

1. e4 {[%emt 0:00:00]} c6 {[%emt 0:00:50]} 2. Nc3 {[%emt 0:00:00]} d5 {[%emt 0:00:07]} 3. Nf3 {[%emt 0:00:00]} Bg4 {[%emt 0:00:08]} 4. h3 {[%emt 0:00:00]} Bxf3 {[%emt 0:00:07]} 5. Qxf3 {[%emt 0:00:00]} e6 {[%emt 0:00:24]} 6. d3 {[%emt 0:00:03]} Nf6 {[%emt 0:00:42]} 7. Bd2 {[%emt 0:00:05]} Nbd7 {[%emt 0:01:03]} 8. g4 {[%emt 0:00:06]} Nb6 {[%emt 0:02:03] B11: Caro-Kann (Zweispringer-Variante)} (8... h6 9. h4 Qb6 10. O-O-O Ne5 11. Qe2 d4 12. Nb1 c5 13. f4 Nc6 14. Bh3 Nd7 15. g5 c4 16. g6 O-O-O 17. gxf7 {1-0 (47) Lu,S (2614)-Andreikin,D (2743) Moscow 2016 CBM 173 [Fischer,J]}) 9. g5 {[%emt 0:03:53]} Nfd7 {[%emt 0:00:39]} 10. Qg3 $146 {[%emt 0:01:37]} ({Vorgänger:} 10. h4 dxe4 11. Nxe4 Nc5 12. O-O-O Nba4 13. b3 Nb6 14. Bc3 Nd5 15. Bb2 Qa5 16. Kb1 {½-½ (61) Volovich,V (2306)-Mahalakshmi,M (2252) Moscow 2018}) 10... Bc5 {[%emt 0:08:10]} 11. h4 {[%emt 0:08:52]} Qe7 {[%emt 0:04:28]} 12. Bh3 {[%emt 0:02:49]} Bd6 {[%emt 0:01:26]} 13. f4 {[%emt 0:01:40]} O-O {[%emt 0:03:29]} 14. O-O {[%emt 0:04:36]} f5 {[%emt 0:06:00]} 15. gxf6 {[%emt 0:06:37]} (15. e5 $5 {[%cal Re5d6]} Bc5+ 16. Kh2 $11) 15... Rxf6 {[%emt 0:02:03]} 16. Kh1 {[%emt 0:02:17]} Rg6 {[%emt 0:10:07]} 17. Qh2 {[%emt 0:03:55]} Rh6 {[%emt 0:06:11]} 18. e5 {[%emt 0:07:31]} Bc7 {[%emt 0:01:14]} 19. Be1 {[%emt 0:01:06]} Rf8 {[%emt 0:06:31]} 20. Bg3 {[%emt 0:08:02]} Kh8 {[%emt 0:05:46]} 21. Nd1 {[%emt 0:09:07]} Bd8 {[%emt 0:06:54]} 22. Ne3 {[%emt 0:06:31]} d4 {[%emt 0:05:17]} 23. Ng2 {[%emt 0:07:00]} g6 {[%emt 0:04:23]} 24. Qg1 {[%emt 0:02:43]} c5 {[%emt 0:02:06]} 25. c3 {[%emt 0:00:51]} dxc3 {[%emt 0:03:00]} 26. bxc3 {[%emt 0:00:06]} Nd5 {[%emt 0:00:32]} 27. c4 {[%emt 0:04:01]} Nb4 {[%emt 0:00:45]} 28. Ne1 {[%emt 0:01:52]} Nc6 {[%emt 0:04:58]} 29. Nf3 {[%emt 0:01:09]} Nd4 {[%emt 0:00:33]} 30. Nxd4 {[%emt 0:04:00]} cxd4 {[%emt 0:00:03]} 31. Qxd4 {[%emt 0:01:30]} Qe8 {[%emt 0:09:42]} 32. Qe3 {[%emt 0:05:59]} Kg7 {[%emt 0:01:46]} 33. d4 {[%emt 0:01:33]} Nb6 {[%emt 0:01:24]} 34. Rac1 {[%emt 0:00:54]} Bxh4 {[%emt 0:00:50]} 35. Bxh4 {[%emt 0:00:32]} Rxh4 {[%emt 0:00:01]} 36. Kg2 {[%emt 0:01:16]} Qf7 {[%emt 0:02:50]} 37. Kg3 {[%emt 0:00:08]} Rh5 {[%emt 0:00:10]} 38. Bg4 {[%emt 0:01:47]} Rh6 {[%emt 0:00:04]} 39. Qd3 $11 {[%emt 0:03:09]} (39. Qa3 $16) 39... Qe7 {[%emt 0:00:41]} 40. Rh1 {[%emt 0:00:00]} Qf7 {[%emt 0:00:00]} 41. Rhf1 {[%emt 0:23:26]} Qe7 {[%emt 0:01:04]} 42. Kg2 1/2-1/2

[Event "WYCC 2018 G14"]
[Site "Halkidiki"]
[Date "2018.10.30"]
[Round "11"]
[White "Matus, Nastassja"]
[Black "Zeliantsova, Kseniya"]
[Result "1/2-1/2"]
[ECO "A48"]
[WhiteElo "1983"]
[BlackElo "1804"]
[Annotator "NA"]
[PlyCount "99"]
[EventDate "2018.10.20"]
[EventType "swiss"]
[EventCountry "GRE"]
[SourceTitle "playchess.com"]
[Source "ChessBase"]
[SourceQuality "1"]
[TimeControl "40/5400+30:1800+30"]

1. d4 {[%emt 0:00:00]} Nf6 {[%emt 0:00:00]} 2. Nf3 {[%emt 0:00:00]} g6 {[%emt 0:00:00]} 3. Bf4 {[%emt 0:00:00]} d6 {[%emt 0:00:06]} 4. h3 {[%emt 0:00:15]} Bg7 {[%emt 0:00:04]} 5. e3 {[%emt 0:00:08]} O-O {[%emt 0:00:17]} 6. Be2 {[%emt 0:00:09]} Nbd7 {[%emt 0:00:10]} 7. O-O {[%emt 0:00:30]} Qe8 {[%emt 0:00:43]} 8. Bh2 {[%emt 0:01:57]} e5 {[%emt 0:01:40]} 9. c4 {[%emt 0:02:18]} Qe7 {[%emt 0:01:00]} 10. Nc3 {[%emt 0:09:24]} c6 {[%emt 0:01:07]} 11. Rc1 {[%emt 0:08:20]} a6 {[%emt 0:04:25] A48: 1 d4 Nf6 2 Nf3 g6: Torre, London and Colle Systems} (11... Re8 12. c5 dxc5 13. dxe5 Nd5 14. Nxd5 cxd5 15. Qxd5 Nxe5 16. Bxe5 Bxe5 17. Bb5 Bxb2 18. Rc2 Rd8 19. Qxc5 Qxc5 20. Rxc5 {0-1 (55) Charochkina,D (2383)-Abdumalik,Z (2405) Doha 2016}) 12. b4 {[%emt 0:08:55]} e4 {[%emt 0:02:22]} 13. Nd2 {[%emt 0:02:20]} d5 {[%emt 0:01:18]} 14. Qb3 $146 {[%emt 0:11:57]} ({Predecessor:} 14. cxd5 cxd5 15. Qb3 Qe6 16. Rc2 g5 17. Rfc1 h5 18. Nf1 Bh6 19. b5 {0-1 (43) Camposano,A (2048)-Calvo,A (2206) Manila 1990}) 14... Qe6 {[%emt 0:06:54]} 15. a4 {[%emt 0:05:16]} Rd8 {[%emt 0:07:46]} 16. b5 {[%emt 0:05:28]} Nf8 {[%emt 0:03:31]} 17. bxc6 {[%emt 0:12:16]} bxc6 {[%emt 0:00:06]} 18. a5 {[%emt 0:00:26]} Qf5 {[%emt 0:15:04]} 19. Na4 {[%emt 0:07:03]} Be6 {[%emt 0:05:49]} 20. Nb6 {[%emt 0:03:41]} Ra7 {[%emt 0:00:11]} 21. Qa4 {[%emt 0:00:57]} dxc4 {[%emt 0:14:01]} 22. Ndxc4 {[%emt 0:04:47]} Qg5 {[%emt 0:02:47]} 23. Bf4 {[%emt 0:04:58]} Qh4 {[%emt 0:00:14]} 24. Bg3 {[%emt 0:01:50]} Qh6 {[%emt 0:07:10]} 25. Ne5 {[%emt 0:04:43]} Nd5 {[%emt 0:11:43]} 26. Qa3 {[%emt 0:04:37]} Bxe5 {[%emt 0:00:20]} 27. Bxe5 {[%emt 0:00:21]} Qg5 {[%emt 0:02:37]} 28. Kh2 {[%emt 0:00:50]} f6 {[%emt 0:00:37]} 29. Bg3 {[%emt 0:00:22]} h5 {[%emt 0:00:32]} 30. h4 {[%emt 0:00:24]} Qf5 {[%emt 0:00:05]} 31. f3 {[%emt 0:00:35]} g5 {[%emt 0:01:50]} 32. fxe4 {[%emt 0:00:08]} Qxe4 {[%emt 0:00:05]} 33. Nxd5 {[%emt 0:00:25]} Bxd5 {[%emt 0:00:19]} 34. Bf3 {[%emt 0:00:07]} Qe6 {[%emt 0:00:05]} 35. Bxd5 {[%emt 0:01:08]} cxd5 {[%emt 0:02:35]} 36. Qd3 {[%emt 0:00:44]} Rg7 {[%emt 0:04:52]} 37. Rf5 {[%emt 0:00:32]} Re8 {[%emt 0:01:56]} (37... Nh7 $16) 38. hxg5 {[%emt 0:00:27]} Rxg5 {[%emt 0:00:44]} 39. Rcf1 {[%emt 0:00:36]} Qxe3 {[%emt 0:03:25]} 40. Qxe3 {[%emt 0:00:00]} Rxe3 {[%emt 0:00:00]} 41. Rxg5+ {[%emt 0:04:23]} fxg5 {[%emt 0:00:20]} 42. Rf5 {[%emt 0:00:24]} Ne6 {[%emt 0:06:28]} 43. Rxd5 {[%emt 0:01:34]} Ra3 {[%emt 0:00:29]} 44. Bd6 {[%emt 0:04:22]} Ra4 {[%emt 0:01:21]} 45. Be5 {[%emt 0:03:43]} Kf7 {[%emt 0:02:45]} 46. Rd7+ {[%emt 0:02:13]} Kg6 {[%emt 0:00:29]} 47. Rd6 {[%emt 0:01:40]} Kf5 {[%emt 0:00:05]} 48. Rxa6 $11 {[%emt 0:00:54]} Nxd4 {[%emt 0:00:11]} 49. Bxd4 {[%emt 0:01:45]} Rxd4 {[%emt 0:00:05]} 50. Rb6 {[%emt 0:04:43]} 1/2-1/2